fUST/lending_fUST_20260406
["ID","MTS","AMOUNT","RATE_DAILY","PERIOD"]
[419860916,1775429433430,-319.0,0.00012057,2]
[419860917,1775429433440,-300.0,0.00013698,2]
[419860918,1775429433449,-718.50926659,0.00013699,2]
[419860953,1775429446595,-5000.0,0.00013562,2]
[419860954,1775429446605,-281.49073341,0.00013699,2]
[419860955,1775429446615,-499.1006599,0.00014159,2]
[419860956,1775429446625,-151.0,0.00014159,2]
[419860957,1775429446635,-11262.6087569,0.00016742,2]
[419860958,1775429446645,-171.517992,0.00017151,2]
[419860959,1775429446655,-1888.053692,0.00018607,2]
[419860960,1775429446664,-528.41763809,0.00018673,2]
[419860961,1775429446674,-810.79844669,0.00018703,2]
[419860962,1775429446683,-1265.60570038,0.00018703,2]
[419860963,1775429446692,-1888.053692,0.00019391,2]
[419860964,1775429446702,-801.73763402,0.00019587,2]
[419860965,1775429446711,-1277.47177837,0.00019656,2]
[419860966,1775429446722,-721.2344003,0.00019656,2]
[419860967,1775429446732,-1184.69952472,0.00019687,2]
[419860968,1775429446741,-1851.09300738,0.00019687,2]
[419860969,1775429446750,-2662.90835669,0.00019687,2]
[419860970,1775429446759,-1106.65445153,0.00019687,2]
[419860971,1775429446768,-1727.41843294,0.00019687,2]
[419860972,1775429446778,-1888.053692,0.00020174,2]
[419860973,1775429446787,-801.737634,0.00020863,2]
[419860974,1775429446797,-1888.053692,0.00020957,2]
[419860975,1775429446806,-1888.053692,0.00021741,2]
[419860976,1775429446815,-156.0,0.000218,2]
[419860977,1775429446825,-3732.6134364,0.00021878,2]
[419860978,1775429446835,-598.1310903,0.00021973,2]
[419860979,1775429446844,-500.0,0.00021973,2]
[419860980,1775429446854,-500.0,0.00021973,2]
[419860981,1775429446864,-248.90448356,0.00021973,2]
[419860982,1775429446873,-500.0,0.00021973,2]
[419860983,1775429446883,-500.0,0.00021973,2]
[419860984,1775429446892,-500.0,0.00021973,2]
[419860985,1775429446902,-500.0,0.00021973,2]
[419860986,1775429446912,-500.0,0.00021973,2]
[419860987,1775429446922,-500.0,0.00021973,2]
[419860988,1775429446931,-500.0,0.00021973,2]
[419860989,1775429446941,-528.42,0.0002199,3]
[419860990,1775429446951,-2025.6,0.0002199,3]
[419860991,1775429446960,-1688.0,0.0002199,3]
[419860992,1775429446970,-500.0,0.00021999,2]
[419860993,1775429446979,-563.8108416,0.00021999,2]
[419860994,1775429446988,-367.84208497,0.00021999,2]
[419860995,1775429446997,-500.0,0.00021999,2]
[419860996,1775429447007,-500.0,0.00021999,2]
[419860997,1775429447016,-262.00012582,0.00021999,2]
[419860998,1775429447025,-500.0,0.00021999,2]
[419860999,1775429447035,-500.0,0.00021999,2]
[419861000,1775429447045,-500.0,0.00021999,2]
[419861001,1775429447054,-500.0,0.00021999,2]
[419861002,1775429447063,-500.0,0.00021999,2]
[419861003,1775429447073,-500.0,0.00021999,2]
[419861004,1775429447082,-500.0,0.00021999,2]
[419861005,1775429447091,-500.0,0.00021999,2]
[419861006,1775429447100,-313.16055268,0.00021999,2]
[419861007,1775429447110,-500.0,0.00021999,2]
[419861008,1775429447119,-153.7098358,0.00021999,2]
[419861009,1775429447128,-500.0,0.00021999,2]
[419861010,1775429447138,-500.0,0.00021999,2]
[419861011,1775429447147,-500.0,0.00021999,2]
[419861012,1775429447157,-500.0,0.00021999,2]
[419861013,1775429447167,-500.0,0.00021999,2]
[419861014,1775429447176,-500.0,0.00021999,2]
[419861015,1775429447185,-500.0,0.00021999,2]
[419861016,1775429447195,-500.0,0.00021999,2]
[419861017,1775429447205,-500.0,0.00021999,2]
[419861018,1775429447215,-500.0,0.00021999,2]
[419861019,1775429447224,-500.0,0.00021999,2]
[419861020,1775429447234,-293.87070543,0.00021999,2]
[419861021,1775429447243,-39694.81220546,0.00022,2]
[419861023,1775429447273,-21568.21777192,0.00022,2]
[419861025,1775429447285,-1765.40586895,0.00022,2]
[419861030,1775429574414,47022.7,0.00034691,120]
[419861032,1775430081411,-1000.0,0.00013699,2]
[419861041,1775430604294,4325.74195149,7e-05,2]
[419861065,1775430631888,-999.05563036,0.0001,2]
[419861066,1775430631899,-2838.26967518,0.00012897,2]
[419861095,1775430640076,-700.499995,0.00012897,2]
[419861096,1775430640130,-1461.23032982,0.00012897,2]
[419861097,1775430640141,-572.11485443,0.00013026,2]
[419861098,1775430640153,-627.88514557,0.00013026,2]
[419861099,1775430640164,-1398.12004943,0.00013027,2]
[419861100,1775430640184,-3601.87995057,0.00013027,2]
[419861101,1775430640196,-300.0,0.00013422,2]
[419861102,1775430640207,-300.0,0.00013422,2]
[419861103,1775430640218,-300.0,0.00013422,2]
[419861104,1775430640231,-300.0,0.00013423,2]
[419861105,1775430640243,-191.28860301,0.00013699,2]
[419861106,1775430640255,-1000.0,0.00013699,2]
[419861107,1775430640267,-368.54010722,0.00014329,2]
[419861108,1775430640285,-407.45989278,0.00014329,2]
[419861109,1775430640297,-420.0,0.00014713,2]
[419861110,1775430640308,-217.05153194,0.00014817,2]
[419861111,1775430640347,-732.54067539,0.00014817,2]
[419861112,1775430640361,-587.0,0.00016129,2]
[419861113,1775430640372,-949.59220733,0.00016615,2]
[419861114,1775430640384,-262.99819312,0.00017424,2]
[419861115,1775430640397,-237.00180688,0.00017424,2]
[419861117,1775430640408,-336.80158067,0.00018173,2]
[419861119,1775430640420,-562.57836695,0.00018296,2]
[419861121,1775430640430,-949.59220733,0.00018412,2]
[419861123,1775430640440,-168.33404235,0.00018703,2]
[419861124,1775430640451,-303.00127623,0.00018703,2]
[419861125,1775430640463,-538.66893553,0.00018703,2]
[419861127,1775430640473,-840.82854155,0.00018703,2]
[419861128,1775430640487,-198.27305049,0.00018703,2]
[419861129,1775430640498,-356.89149087,0.00018703,2]
[419861130,1775430640509,-634.47376155,0.00018703,2]
[419861131,1775430640520,-990.37388718,0.00019687,2]
[419861132,1775430640530,-949.59220733,0.0002021,2]
[419861133,1775430640541,-261.163975,0.000203,2]
[419861134,1775430640552,-206.4189046,0.00020384,2]
[419861135,1775430640563,-300.0,0.00021712,2]
[419861136,1775430640574,-3198.60600425,0.00021866,2]
[419861137,1775430640585,-172.37684368,0.00021867,2]
[419861138,1775430640595,-151.0,0.00021955,2]
[419861139,1775430640606,-395.63,0.0002196,3]
[419861140,1775430640617,-197.81,0.0002196,3]
[419861141,1775430640627,-593.48,0.0002196,3]
[419861142,1775430640638,-791.25,0.00021961,3]
[419861143,1775430640649,-1230.83,0.00021962,3]
[419861144,1775430640660,-307.61973999,0.00021965,2]
[419861145,1775430640671,-500.0,0.00021965,2]
[419861146,1775430640681,-500.0,0.00021965,2]
[419861147,1775430640693,-500.0,0.00021965,2]
[419861148,1775430640703,-500.0,0.00021965,2]
[419861149,1775430640715,-500.0,0.00021965,2]
[419861150,1775430640726,-500.0,0.00021965,2]
[419861151,1775430640868,-500.0,0.00021965,2]
[419861152,1775430640887,-500.0,0.00021965,2]
[419861153,1775430640896,-500.0,0.00021965,2]
[419861154,1775430640906,-500.0,0.00021965,2]
[419861155,1775430640915,-505.44249758,0.00021965,2]
[419861156,1775430640925,-500.0,0.00021965,2]
[419861157,1775430640934,-500.0,0.00021965,2]
[419861158,1775430640944,-500.0,0.00021965,2]
[419861159,1775430640953,-202.17024044,0.00021965,2]
[419861160,1775430640963,-500.0,0.00021965,2]
[419861161,1775430640973,-500.0,0.00021965,2]
[419861162,1775430640983,-500.0,0.00021965,2]
[419861163,1775430640992,-500.0,0.00021965,2]
[419861164,1775430641000,-500.0,0.00021965,2]
[419861165,1775430641010,-500.0,0.00021965,2]
[419861166,1775430641019,-500.0,0.00021965,2]
[419861167,1775430641028,-500.0,0.00021965,2]
[419861168,1775430641037,-500.0,0.00021965,2]
[419861169,1775430641046,-500.0,0.00021965,2]
[419861170,1775430641055,-500.0,0.00021965,2]
[419861171,1775430641065,-500.0,0.00021965,2]
[419861172,1775430641074,-500.0,0.00021965,2]
[419861173,1775430641084,-500.0,0.00021965,2]
[419861174,1775430641094,-500.0,0.00021965,2]
[419861175,1775430641103,-500.0,0.00021965,2]
[419861176,1775430641112,-500.0,0.00021965,2]
[419861177,1775430641121,-500.0,0.00021965,2]
[419861178,1775430641131,-500.0,0.00021965,2]
[419861179,1775430641140,-500.0,0.00021965,2]
[419861180,1775430641149,-500.0,0.00021965,2]
[419861181,1775430641159,-500.0,0.00021965,2]
[419861182,1775430641168,-500.0,0.00021965,2]
[419861183,1775430641177,-500.0,0.00021965,2]
[419861184,1775430641187,-500.0,0.00021965,2]
[419861185,1775430641196,-500.0,0.00021965,2]
[419861186,1775430641205,-500.0,0.00021965,2]
[419861187,1775430641214,-500.0,0.00021965,2]
[419861188,1775430641223,-500.0,0.00021965,2]
[419861189,1775430641232,-500.0,0.00021965,2]
[419861190,1775430641242,-238.01468831,0.00021965,2]
[419861191,1775430641251,-500.0,0.00021965,2]
[419861192,1775430641260,-500.0,0.00021965,2]
[419861193,1775430641270,-500.0,0.00021965,2]
[419861194,1775430641279,-500.0,0.00021965,2]
[419861195,1775430641288,-500.0,0.00021965,2]
[419861196,1775430641297,-500.0,0.00021965,2]
[419861197,1775430641306,-500.0,0.00021965,2]
[419861198,1775430641315,-500.0,0.00021965,2]
[419861199,1775430641324,-500.0,0.00021965,2]
[419861200,1775430641332,-500.0,0.00021965,2]
[419861201,1775430641342,-500.0,0.00021965,2]
[419861202,1775430641351,-500.0,0.00021965,2]
[419861203,1775430641361,-386.53980846,0.00021965,2]
[419861204,1775430641371,-500.0,0.00021965,2]
[419861205,1775430641381,-500.0,0.00021965,2]
[419861206,1775430641391,-500.0,0.00021965,2]
[419861207,1775430641400,-500.0,0.00021965,2]
[419861208,1775430641409,-500.0,0.00021965,2]
[419861209,1775430641418,-500.0,0.00021965,2]
[419861210,1775430641427,-500.0,0.00021965,2]
[419861211,1775430641437,-500.0,0.00021965,2]
[419861212,1775430641447,-500.0,0.00021965,2]
[419861213,1775430641456,-500.0,0.00021965,2]
[419861214,1775430641467,-500.0,0.00021965,2]
[419861215,1775430641476,-500.0,0.00021965,2]
[419861216,1775430641488,-500.0,0.00021965,2]
[419861217,1775430641498,-500.0,0.00021965,2]
[419861218,1775430641508,-300.0,0.00021965,2]
[419861219,1775430641517,-650.0,0.00021965,2]
[419861220,1775430641527,-189.13002671,0.00021965,2]
[419861221,1775430641537,-500.0,0.00021965,2]
[419861222,1775430641546,-12219.4975789,0.00021966,2]
[419861223,1775430641556,-2870.1650438,0.00021966,2]
[419861224,1775430641566,-3638.4643615,0.00021966,2]
[419861225,1775430641576,-151.0,0.00021966,2]
[419861226,1775430641585,-151.0,0.00021966,2]
[419861227,1775430641595,-151.0,0.00021966,2]
[419861228,1775430641604,-151.0,0.00021966,2]
[419861229,1775430641614,-151.0,0.00021966,2]
[419861230,1775430641624,-151.0,0.00021966,2]
[419861231,1775430641633,-151.0,0.00021966,2]
[419861233,1775430641642,-151.0,0.00021966,2]
[419861234,1775430641651,-181.971586,0.00021966,2]
[419861236,1775430641661,-181.971586,0.00021966,2]
[419861237,1775430641670,-181.971586,0.00021966,2]
[419861238,1775430641679,-181.971586,0.00021966,2]
[419861239,1775430641690,-151.0,0.00021966,2]
[419861240,1775430641699,-151.0,0.00021966,2]
[419861241,1775430641709,-243.846576,0.00021966,2]
[419861242,1775430641718,-151.0,0.00021966,2]
[419861244,1775430641728,-151.0,0.00021966,2]
[419861246,1775430641741,-151.0,0.00021966,2]
[419861248,1775430641750,-237.740727,0.00021966,2]
[419861250,1775430641759,-236.269985,0.00021966,2]
[419861251,1775430641768,-298.851574,0.00021966,2]
[419861252,1775430641777,-151.0,0.00021968,2]
[419861253,1775430641785,-151.0,0.00021968,2]
[419861254,1775430641795,-151.0,0.0002197,2]
[419861255,1775430641804,-151.0,0.0002197,2]
[419861256,1775430641813,-151.0,0.0002197,2]
[419861257,1775430641822,-160.674395,0.0002197,2]
[419861258,1775430641831,-151.0,0.0002197,2]
[419861259,1775430641841,-151.0,0.0002197,2]
[419861260,1775430641850,-151.0,0.0002197,2]
[419861261,1775430641859,-198.5774,0.0002197,2]
[419861262,1775430641868,-181.971586,0.0002197,2]
[419861263,1775430641877,-181.971586,0.0002197,2]
[419861264,1775430641887,-181.971586,0.0002197,2]
[419861265,1775430641896,-181.971586,0.0002197,2]
[419861266,1775430641905,-181.971586,0.0002197,2]
[419861267,1775430641914,-181.971586,0.0002197,2]
[419861268,1775430641924,-181.971586,0.0002197,2]
[419861269,1775430641942,-181.971586,0.0002197,2]
[419861270,1775430641954,-151.0,0.0002197,2]
[419861271,1775430641964,-151.0,0.0002197,2]
[419861272,1775430641974,-151.0,0.0002197,2]
[419861273,1775430641986,-151.0,0.0002197,2]
[419861274,1775430641996,-151.0,0.0002197,2]
[419861275,1775430642005,-500.0,0.0002197,2]
[419861276,1775430642014,-604.94538984,0.0002197,2]
[419861277,1775430642024,-500.0,0.0002197,2]
[419861278,1775430642033,-235.06597582,0.0002197,2]
[419861279,1775430642043,-500.0,0.0002197,2]
[419861280,1775430642052,-500.0,0.0002197,2]
[419861281,1775430642061,-500.0,0.0002197,2]
[419861282,1775430642071,-500.0,0.0002197,2]
[419861283,1775430642081,-500.0,0.0002197,2]
[419861284,1775430642090,-647.06212768,0.0002197,2]
[419861285,1775430642099,-500.0,0.0002197,2]
[419861286,1775430642109,-500.0,0.0002197,2]
[419861287,1775430642118,-500.0,0.0002197,2]
[419861288,1775430642128,-500.0,0.0002197,2]
[419861289,1775430642137,-500.0,0.0002197,2]
[419861290,1775430642147,-151.268153,0.00021971,2]
[419861291,1775430642157,-151.0,0.00021971,2]
[419861292,1775430642166,-151.0,0.00021971,2]
[419861293,1775430642176,-288.956865,0.00021971,2]
[419861294,1775430642186,-151.0,0.00021971,2]
[419861295,1775430642196,-151.0,0.00021971,2]
[419861296,1775430642206,-181.971586,0.00021971,2]
[419861297,1775430642215,-181.971586,0.00021971,2]
[419861298,1775430642225,-181.971586,0.00021971,2]
[419861299,1775430642236,-181.971586,0.00021971,2]
[419861300,1775430642245,-151.0,0.00021971,2]
[419861301,1775430642254,-151.0,0.00021971,2]
[419861302,1775430642264,-500.0,0.00021972,2]
[419861303,1775430642273,-151.0,0.00021972,2]
[419861304,1775430642283,-151.0,0.00021972,2]
[419861305,1775430642293,-181.971586,0.00021972,2]
[419861306,1775430642304,-181.971586,0.00021972,2]
[419861307,1775430642313,-181.971586,0.00021972,2]
[419861308,1775430642323,-181.971592,0.00021972,2]
[419861309,1775430642332,-151.0,0.00021972,2]
[419861310,1775430642342,-151.0,0.00021972,2]
[419861311,1775430642352,-504.50195692,0.00021973,2]
[419861312,1775430642361,-500.0,0.00021973,2]
[419861313,1775430642370,-500.0,0.00021973,2]
[419861314,1775430642380,-500.0,0.00021973,2]
[419861315,1775430642389,-500.0,0.00021973,2]
[419861316,1775430642398,-500.06817871,0.00021973,2]
[419861317,1775430642408,-500.0,0.00021973,2]
[419861319,1775430642417,-500.0,0.00021973,2]
[419861321,1775430642426,-500.0,0.00021973,2]
[419861323,1775430642436,-500.0,0.00021973,2]
[419861324,1775430642445,-151.0,0.00021998,2]
[419861326,1775430642454,-151.0,0.00021998,2]
[419861328,1775430642463,-151.0,0.00021998,2]
[419861330,1775430642472,-151.0,0.00021998,2]
[419861332,1775430642481,-151.0,0.00021999,2]
[419861334,1775430642491,-151.0,0.00021999,2]
[419861335,1775430642500,-301.21159847,0.00021999,2]
[419861337,1775430642509,-542.18087724,0.00021999,2]
[419861339,1775430642518,-963.8771151,0.00021999,2]
[419861340,1775430642527,-1506.05799234,0.00021999,2]
[419861342,1775430642537,-2168.72350897,0.00021999,2]
[419861343,1775430642546,-2951.87366499,0.00021999,2]
[419861344,1775430642556,-3855.5084604,0.00021999,2]
[419861345,1775430642565,-4879.62789519,0.00021999,2]
[419861346,1775430642575,-6024.23196937,0.00021999,2]
[419861347,1775430642585,-7289.32068294,0.00021999,2]
[419861348,1775430642594,-333.37034386,0.00021999,2]
[419861349,1775430642603,-600.06661894,0.00021999,2]
[419861350,1775430642613,-1066.78510034,0.00021999,2]
[419861351,1775430642622,-206.01638636,0.00021999,2]
[419861352,1775430642631,-370.82949545,0.00021999,2]
[419861353,1775430642640,-659.25243636,0.00021999,2]
[419861354,1775430642650,-1030.08193181,0.00021999,2]
[419861355,1775430642659,-1127519.02791116,0.00022,2]
[419861357,1775430642674,-1509.5865512,0.00022,2]
[419861358,1775430642716,-1735.28959165,0.00022,2]
[419861389,1775430646119,-396.70333983,0.00018173,2]
[419861391,1775430646129,-5000.0,0.00021745,2]
[419861392,1775430646138,-151.0,0.00021965,2]
[419861393,1775430646148,-151.0,0.00021965,2]
[419861394,1775430646158,-223.491606,0.00021966,2]
[419861395,1775430646167,-6198.45049961,0.00022,2]
[419861396,1775430646178,-6070.70407332,0.00022,2]
[419861397,1775430646479,-5590.80279193,0.00022,2]
[419861398,1775430649705,-671.11804442,0.00022,2]
[419861399,1775430649771,-0.00147676,0.00022,2]
[419861402,1775430657826,10000.0,9.003e-05,2]
[419861405,1775431051571,500.0,0.00021865,120]
[419861414,1775431303041,500.0,0.00021864,120]
[419861415,1775431303257,500.0,0.00021989,120]
[419861416,1775431303482,452.30584721,0.00021999,120]
[419861417,1775431313066,164.776819,0.00016537,120]
[419862152,1775431847701,-5000.0,0.000119,2]
[419862154,1775431847713,-5000.0,0.0001202,2]
[419862156,1775431847722,-3642.01347538,0.00012141,2]
[419862158,1775431847732,-300.0,0.00012263,2]
[419862160,1775431847740,-420.0,0.00013458,2]
[419862162,1775431847750,-1000.0,0.00013699,2]
[419862164,1775431847760,-500.0,0.00014715,2]
[419862166,1775431847770,-587.0,0.0001477,2]
[419862168,1775431847779,-6222.33038905,0.00015659,2]
[419862171,1775431847791,-3777.66961095,0.00015659,2]
[419862173,1775431847800,-823.0,0.0001621,2]
[419862175,1775431847809,-1715.47188878,0.00016278,2]
[419862177,1775431847818,-16797.2327557,0.00016354,2]
[419862179,1775431847827,-1787.66064035,0.00016354,2]
[419862181,1775431847841,-7480.32861818,0.00016354,2]
[419862185,1775431847866,-7548.06593973,0.00016354,2]
[419862187,1775431847875,-1607.3550342,0.00016378,2]
[419862188,1775431847884,-164.776819,0.00016537,2]
[419862191,1775431847894,-451.0,0.00017791,2]
[419862192,1775431847903,-171.517992,0.00017999,2]
[419862194,1775431847913,-1715.47188877,0.00018224,2]
[419862196,1775431847921,-151.0,0.00019559,2]
[419862198,1775431847930,-151.0,0.00019614,2]
[419862200,1775431847940,-151.0,0.00019669,2]
[419862202,1775431847949,-276.03113467,0.00019724,2]
[419862204,1775431847958,-396.69342075,0.00019846,2]
[419862206,1775431847967,-3000.0,0.0002,2]
[419862208,1775431847976,-1715.47188877,0.0002017,2]
[419862210,1775431847985,-407.68,0.0002079,2]
[419862212,1775431847994,-2149.22486044,0.000208,2]
[419862214,1775431848002,-800.0,0.00020811,2]
[419862216,1775431848011,-407.68,0.00020832,2]
[419862218,1775431848020,-500.0,0.00020899,2]
[419862220,1775431848029,-500.0,0.00020899,2]
[419862222,1775431848038,-157.4863527,0.00020899,2]
[419862224,1775431848047,-500.0,0.00020899,2]
[419862226,1775431848055,-500.0,0.00020899,2]
[419862228,1775431848064,-500.0,0.00020899,2]
[419862230,1775431848073,-500.0,0.00020899,2]
[419862232,1775431848083,-500.0,0.00020899,2]
[419862234,1775431848092,-500.0,0.00020899,2]
[419862236,1775431848100,-500.0,0.00020899,2]
[419862238,1775431848109,-500.0,0.00020899,2]
[419862240,1775431848118,-500.0,0.00020899,2]
[419862242,1775431848127,-500.0,0.00020899,2]
[419862244,1775431848135,-500.0,0.00020899,2]
[419862246,1775431848144,-500.0,0.00020899,2]
[419862248,1775431848153,-500.0,0.00020899,2]
[419862250,1775431848162,-500.0,0.00020899,2]
[419862252,1775431848171,-500.0,0.00020899,2]
[419862254,1775431848180,-500.0,0.00020899,2]
[419862256,1775431848188,-500.0,0.00020899,2]
[419862258,1775431848198,-500.0,0.00020899,2]
[419862259,1775431848207,-500.0,0.00020899,2]
[419862261,1775431848216,-500.0,0.00020899,2]
[419862263,1775431848225,-500.0,0.00020899,2]
[419862265,1775431848233,-500.0,0.00020899,2]
[419862267,1775431848242,-500.0,0.00020899,2]
[419862269,1775431848251,-500.0,0.00020899,2]
[419862271,1775431848260,-500.0,0.00020899,2]
[419862273,1775431848270,-500.0,0.00020899,2]
[419862275,1775431848279,-500.0,0.00020899,2]
[419862277,1775431848288,-500.0,0.00020899,2]
[419862279,1775431848298,-500.0,0.00020899,2]
[419862281,1775431848308,-500.0,0.00020899,2]
[419862283,1775431848317,-337.90853895,0.00020899,2]
[419862285,1775431848326,-500.0,0.00020899,2]
[419862287,1775431848335,-500.0,0.00020899,2]
[419862289,1775431848345,-500.0,0.00020899,2]
[419862291,1775431848354,-500.0,0.00020899,2]
[419862294,1775431848363,-500.0,0.00020899,2]
[419862296,1775431848373,-500.0,0.00020899,2]
[419862298,1775431848382,-500.0,0.00020899,2]
[419862300,1775431848391,-342.60265097,0.00020899,2]
[419862302,1775431848400,-500.0,0.00020899,2]
[419862314,1775431848511,-500.0,0.00020899,2]
[419862317,1775431848521,-500.0,0.00020899,2]
[419862319,1775431848531,-500.0,0.00020899,2]
[419862321,1775431848541,-500.0,0.00020899,2]
[419862323,1775431848553,-500.0,0.00020899,2]
[419862325,1775431848563,-500.0,0.00020899,2]
[419862327,1775431848573,-500.0,0.00020899,2]
[419862329,1775431848584,-500.0,0.00020899,2]
[419862331,1775431848595,-500.0,0.00020899,2]
[419862333,1775431848604,-500.0,0.00020899,2]
[419862335,1775431848613,-500.0,0.00020899,2]
[419862337,1775431848622,-500.0,0.00020899,2]
[419862339,1775431848631,-5000.0,0.000209,2]
[419862341,1775431848640,-5000.0,0.000209,2]
[419862343,1775431848648,-1917.05054,0.00021524,2]
[419862345,1775431848658,-196.3265865,0.00021547,2]
[419862347,1775431848667,-162.380719,0.00021772,2]
[419862349,1775431848677,-168.3888056,0.00021772,2]
[419862351,1775431848687,-461.0432349,0.00021772,2]
[419862353,1775431848696,-151.0,0.00021772,2]
[419862354,1775431848706,-557.5788265,0.00021772,2]
[419862356,1775431848715,-557.5788265,0.00021772,2]
[419862358,1775431848724,-2230.315306,0.00021772,2]
[419862360,1775431848733,-578.20924308,0.00021827,2]
[419862362,1775431848742,-500.0,0.00021872,2]
[419862364,1775431848752,-15851.82383153,0.00021873,2]
[419862366,1775431848761,-599.60298507,0.00021882,2]
[419862367,1775431848770,-621.78829552,0.00021937,2]
[419862368,1775431848780,-500.0,0.00021973,2]
[419862369,1775431848789,-248.90448356,0.00021973,2]
[419862370,1775431848798,-500.0,0.00021973,2]
[419862371,1775431848807,-500.0,0.00021973,2]
[419862372,1775431848815,-500.0,0.00021973,2]
[419862373,1775431848824,-500.0,0.00021973,2]
[419862374,1775431848833,-500.0,0.00021973,2]
[419862375,1775431848842,-500.0,0.00021973,2]
[419862376,1775431848851,-500.0,0.00021973,2]
[419862377,1775431848860,-500.0,0.00021973,2]
[419862378,1775431848869,-500.0,0.00021986,2]
[419862379,1775431848878,-500.0,0.00021986,2]
[419862380,1775431848887,-500.0,0.00021986,2]
[419862381,1775431848896,-500.0,0.00021986,2]
[419862382,1775431848905,-500.0,0.00021986,2]
[419862383,1775431848914,-252.51892419,0.00021986,2]
[419862384,1775431848923,-500.0,0.00021986,2]
[419862385,1775431848931,-500.0,0.00021986,2]
[419862386,1775431848941,-500.0,0.00021986,2]
[419862387,1775431848950,-500.0,0.00021986,2]
[419862388,1775431848959,-500.0,0.00021986,2]
[419862389,1775431848968,-500.0,0.00021986,2]
[419862390,1775431848978,-389.59800171,0.00021986,2]
[419862391,1775431848987,-500.0,0.00021986,2]
[419862392,1775431848995,-500.0,0.00021986,2]
[419862393,1775431849004,-500.0,0.00021986,2]
[419862394,1775431849014,-500.0,0.00021986,2]
[419862395,1775431849022,-500.0,0.00021986,2]
[419862396,1775431849031,-387.86387639,0.00021986,2]
[419862397,1775431849041,-500.0,0.00021986,2]
[419862398,1775431849050,-500.0,0.00021986,2]
[419862399,1775431849058,-500.0,0.00021986,2]
[419862400,1775431849068,-197.35,0.00021986,3]
[419862401,1775431849076,-592.1,0.00021986,3]
[419862402,1775431849085,-1578.84,0.00021987,3]
[419862403,1775431849094,-789.42,0.00021987,3]
[419862404,1775431849103,-394.71,0.00021987,3]
[419862405,1775431849112,-5380.29054261,0.0002199,3]
[419862406,1775431849121,-1649.92346676,0.0002199,3]
[419862407,1775431849130,-644.79446246,0.00021992,2]
[419862408,1775431849139,-9749.4377514,0.00021997,2]
[419862409,1775431849148,-1343.6225532,0.00021997,2]
[419862410,1775431849157,-3555.5909851,0.00021997,2]
[419862411,1775431849166,-3176.7503273,0.00021997,2]
[419862412,1775431849175,-181.1484739,0.00021997,2]
[419862413,1775431849184,-1666.85171929,0.00021999,2]
[419862414,1775431849193,-283.59692623,0.00021999,2]
[419862415,1775431849203,-306.01560111,0.00021999,2]
[419862416,1775431849212,-550.828082,0.00021999,2]
[419862417,1775431849222,-2400.26647577,0.00021999,2]
[419862418,1775431849231,-324.90144284,0.00021999,2]
[419862419,1775431849240,-289.21053602,0.00021999,2]
[419862420,1775431849249,-3263.76234043,0.00021999,2]
[419862421,1775431849259,-1000.0,0.00022,2]
[419862422,1775431849268,-1000.0,0.00022,2]
[419862423,1775431849277,-1000.0,0.00022,2]
[419862424,1775431849286,-1000.0,0.00022,2]
[419862425,1775431849295,-1000.0,0.00022,2]
[419862426,1775431849304,-1000.0,0.00022,2]
[419862427,1775431849314,-1000.0,0.00022,2]
[419862428,1775431849323,-1000.0,0.00022,2]